[Event "Uhlenkoeper-Open 2024"]
[Site "Uelzen"]
[Date "2024.12.27"]
[Round "2.3"]
[White "Wetterau, Nathanael"]
[Black "Parvanyan, Ashot"]
[Result "0-1"]
[ECO "B00"]
[WhiteElo "1961"]
[BlackElo "2399"]
[Annotator "ChessBase"]
[PlyCount "124"]
[EventDate "2024.12.27"]
[EventType "swiss"]
[EventCountry "GER"]
[SourceTitle "playchess.com"]
[Source "ChessBase"]
[SourceQuality "1"]
[TimeControl "40/5400+30:1800+30"]

1. e4 {[%emt 0:00:03]} Nc6 {[%emt 0:00:21]} 2. d4 {[%emt 0:02:41]} d6 {[%emt 0:00:06]} 3. d5 {[%emt 0:00:16]} Nb8 {[%emt 0:00:13]} 4. c4 {[%emt 0:00:58]} Nf6 {[%emt 0:01:13]} 5. Nc3 {[%emt 0:00:14]} g6 {[%emt 0:00:05]} 6. h3 {[%emt 0:01:25]} Bg7 {[%emt 0:00:10]} 7. Be2 {[%emt 0:02:45]} O-O {[%emt 0:00:16]} 8. f4 {[%emt 0:02:21]} e6 {[%emt 0:02:57]} 9. Nf3 {[%emt 0:00:36]} exd5 {[%emt 0:01:34]} 10. cxd5 {[%emt 0:00:09]} Re8 {[%emt 0:00:48]} 11. e5 {[%emt 0:06:12]} Nfd7 {[%emt 0:05:37]} 12. e6 {[%emt 0:09:04]} fxe6 {[%emt 0:02:59]} 13. dxe6 {[%emt 0:01:40]} Nf8 {[%emt 0:12:37]} 14. f5 {[%emt 0:20:54]} c6 {[%emt 0:12:06]} 15. Bg5 {[%emt 0:07:17]} Qa5 {[%emt 0:02:17]} 16. e7 {[%emt 0:04:49]} Nfd7 {[%emt 0:04:09]} 17. Qxd6 {[%emt 0:01:25]} Qxf5 {[%emt 0:01:09]} 18. g4 {[%emt 0:05:09]} Qf7 {[%emt 0:04:40]} 19. O-O {[%emt 0:04:05]} Bf6 {[%emt 0:07:11]} 20. Bxf6 {[%emt 0:04:34]} Qxf6 {[%emt 0:00:24]} 21. Ne4 {[%emt 0:00:38]} Qxe7 {[%emt 0:01:30]} 22. Bc4+ {[%emt 0:00:05]} Kh8 {[%emt 0:00:24]} 23. Qd4+ {[%emt 0:03:50]} Qg7 {[%emt 0:00:05]} 24. Nd6 {[%emt 0:02:50]} Rf8 {[%emt 0:00:37]} 25. Qxg7+ {[%emt 0:03:29]} Kxg7 {[%emt 0:00:05]} 26. Ng5 {[%emt 0:00:44]} Nb6 {[%emt 0:07:38]} 27. Rxf8 {[%emt 0:02:16]} Kxf8 {[%emt 0:00:07]} 28. Nxc8 {[%emt 0:01:05]} Nxc4 {[%emt 0:00:33]} 29. Rd1 {[%emt 0:06:34]} Na6 {[%emt 0:04:47]} 30. Rd8+ {[%emt 0:02:06]} Kg7 {[%emt 0:00:07]} 31. Rd7+ {[%emt 0:02:02]} Kf6 {[%emt 0:00:43]} 32. Nxh7+ {[%emt 0:00:06]} Ke5 {[%emt 0:00:31]} 33. b3 {[%emt 0:00:57]} Rxc8 {[%emt 0:06:56]} 34. bxc4 {[%emt 0:00:15]} Nc5 {[%emt 0:01:38]} 35. Rf7 {[%emt 0:01:31]} Rd8 {[%emt 0:04:36]} 36. Ng5 {[%emt 0:01:22]} Rd1+ {[%emt 0:00:37]} 37. Kf2 {[%emt 0:01:08]} Rd2+ {[%emt 0:05:40]} 38. Ke3 {[%emt 0:00:08]} Rd3+ {[%emt 0:00:04]} 39. Ke2 {[%emt 0:00:12]} Ra3 {[%emt 0:00:06]} 40. Nf3+ {[%emt 0:01:06]} Ke6 {[%emt 0:07:40]} 41. Ng5+ {[%emt 0:30:22]} Kd6 {[%emt 0:30:04]} 42. Rf6+ {[%emt 0:01:10]} Ke5 {[%emt 0:00:05]} 43. Rxg6 {[%emt 0:00:24]} Rxa2+ {[%emt 0:00:08]} 44. Ke3 {[%emt 0:00:00]} Ra3+ {[%emt 0:00:00]} 45. Ke2 {[%emt 0:00:00]} Kf4 {[%emt 0:00:00]} 46. Rg7 {[%emt 0:00:00]} Ra2+ {[%emt 0:00:00]} 47. Kd1 {[%emt 0:00:00]} Rh2 {[%emt 0:00:00]} 48. Kc1 {[%emt 0:00:00]} a5 {[%emt 0:00:00]} 49. Rf7+ {[%emt 0:00:00]} Ke3 {[%emt 0:00:00]} 50. Rf3+ {[%emt 0:00:00]} Kd4 {[%emt 0:00:00]} 51. Nf7 {[%emt 0:00:00]} Nd3+ {[%emt 0:00:00]} 52. Kb1 {[%emt 0:00:04]} a4 {[%emt 0:00:00]} 53. g5 {[%emt 0:01:31]} a3 {[%emt 0:05:14]} 54. Rg3 {[%emt 0:03:15]} a2+ {[%emt 0:06:09]} 55. Ka1 {[%emt 0:00:04]} Nb4 {[%emt 0:00:32]} 56. Rg1 {[%emt 0:00:21]} Kxc4 {[%emt 0:00:31]} 57. g6 {[%emt 0:00:48]} Kb3 {[%emt 0:00:24]} 58. Rg3+ {[%emt 0:00:09]} Ka4 {[%emt 0:00:04]} 59. Rg1 {[%emt 0:00:15]} Nd3 {[%emt 0:00:39]} 60. Rg3 {[%emt 0:02:34]} Nc5 {[%emt 0:00:27]} 61. Ne5 {[%emt 0:00:29]} Nb3+ {[%emt 0:00:13]} 62. Rxb3 {[%emt 0:00:12]} Kxb3 {[%emt 0:00:04]} 0-1

[Event "Uhlenkoeper-Open 2024"]
[Site "Uelzen"]
[Date "2024.12.27"]
[Round "2.4"]
[White "Bagrationi, Alexander"]
[Black "Fleischmann, Yannic"]
[Result "1-0"]
[ECO "C61"]
[WhiteElo "2384"]
[BlackElo "1911"]
[Annotator "TA"]
[PlyCount "49"]
[EventDate "2024.12.27"]
[EventType "swiss"]
[EventCountry "GER"]
[SourceTitle "playchess.com"]
[Source "ChessBase"]
[SourceQuality "1"]
[TimeControl "40/5400+30:1800+30"]

{[%evp 18,49,24,24,91,42,35,0,7,0,0,-5,0,-19,-10,-18,-12,-15,0,-4,-5,-23,0,0,0,0,0,0,32,39,40,39,535,520]} 1. e4 {[%emt 0:00:14]} e5 {[%emt 0:00:07]} 2. Nf3 {[%emt 0:00:04]} Nc6 {[%emt 0:00:06]} 3. Bb5 {[%emt 0:00:07]} Nd4 {[%emt 0:01:42]} 4. Nxd4 {[%emt 0:00:47]} exd4 {[%emt 0:00:05]} 5. d3 {[%emt 0:01:15]} c6 {[%emt 0:02:32]} 6. Bc4 {[%emt 0:01:04]} d5 {[%emt 0:00:13]} 7. exd5 {[%emt 0:00:13]} cxd5 {[%emt 0:00:05]} 8. Bb5+ {[%emt 0:00:14]} Bd7 {[%emt 0:00:07]} 9. Bxd7+ {[%emt 0:00:11]} Qxd7 {[%emt 0:00:05]} 10. O-O {[%emt 0:00:08]} Be7 {[%emt 0:00:17]} (10... Bc5 $11 {remains equal.}) 11. Nd2 {[%emt 0:00:23]} (11. Re1 $16) 11... Bf6 $14 {[%emt 0:01:04]} 12. Nb3 {[%emt 0:05:30]} Ne7 {[%emt 0:03:22]} 13. Bd2 {[%emt 0:03:12]} O-O {[%emt 0:00:54]} 14. Bb4 {[%emt 0:00:23]} Rfc8 {[%emt 0:03:33]} 15. Bxe7 {[%emt 0:07:16]} Qxe7 {[%emt 0:00:50]} 16. Re1 {[%emt 0:00:33]} Qc7 {[%emt 0:01:37]} 17. g3 {[%emt 0:04:17]} h6 {[%emt 0:02:09]} (17... Qxc2 $2 {too greedy.} 18. Re8+ Rxe8 19. Qxc2 $18) 18. Rc1 {[%emt 0:00:17]} a5 {[%emt 0:01:42][%cal Ba7a5,Ba5a4,Ba4b3][%mdl 32]} 19. Qh5 {[%emt 0:11:30]} a4 {[%emt 0:03:09]} 20. Nd2 {[%emt 0:00:46]} Ra5 {[%emt 0:02:51]} 21. Re2 {[%emt 0:07:52]} Rc5 {[%emt 0:09:07]} 22. Nf3 {[%emt 0:01:48]} Rb5 {[%emt 0:12:53]} 23. b3 {[%emt 0:01:34]} axb3 {[%emt 0:06:01]} 24. Rce1 {[%emt 0:02:49] Intending Re8+ and mate.} Kh7 $2 {[%emt 0:10:24][%mdl 8192]} (24... bxc2 25. Re8+ Rxe8 26. Rxe8+ Kh7 27. Qf5+ g6 28. Qxf6 c1=Q+ 29. Kg2) (24... Qc6 $14 25. cxb3 (25. axb3 Rc5 $11) 25... Ra5) 25. Qf5+ {[%emt 0:00:29]} ({And not} 25. axb3 g6 26. Qh3 Kg7 $11) 1-0

[Event "Uhlenkoeper-Open 2024"]
[Site "Uelzen"]
[Date "2024.12.27"]
[Round "2.5"]
[White "Ritter, Uwe"]
[Black "Stopa, Jacek"]
[Result "0-1"]
[ECO "A50"]
[WhiteElo "1954"]
[BlackElo "2323"]
[Annotator "ChessBase"]
[PlyCount "60"]
[EventDate "2024.12.27"]
[EventType "swiss"]
[EventCountry "GER"]
[SourceTitle "playchess.com"]
[Source "ChessBase"]
[SourceQuality "1"]
[TimeControl "40/5400+30:1800+30"]

1. Nf3 {[%emt 0:00:02]} Nf6 {[%emt 0:02:31]} 2. d4 {[%emt 0:00:03]} b6 {[%emt 0:03:45]} 3. g3 {[%emt 0:00:38]} Bb7 {[%emt 0:00:27]} 4. Bg2 {[%emt 0:00:02]} g6 {[%emt 0:00:18]} 5. O-O {[%emt 0:00:27]} Bg7 {[%emt 0:00:04]} 6. c4 {[%emt 0:00:04]} O-O {[%emt 0:00:18]} 7. Nc3 {[%emt 0:00:09]} Ne4 {[%emt 0:01:28]} 8. Nxe4 {[%emt 0:06:06]} Bxe4 {[%emt 0:00:06]} 9. b3 {[%emt 0:00:33]} e6 {[%emt 0:02:02]} 10. Bb2 {[%emt 0:03:24]} a5 {[%emt 0:00:35]} 11. a3 {[%emt 0:01:39]} d6 {[%emt 0:01:30]} 12. Qd2 {[%emt 0:02:32]} Nd7 {[%emt 0:01:34]} 13. Ne1 {[%emt 0:03:55]} Bxg2 {[%emt 0:02:50]} 14. Nxg2 {[%emt 0:00:03]} Qe7 {[%emt 0:00:51]} 15. e4 {[%emt 0:03:29]} Rfd8 {[%emt 0:06:28]} 16. f4 {[%emt 0:10:13]} e5 {[%emt 0:06:19]} 17. dxe5 {[%emt 0:07:12]} dxe5 {[%emt 0:00:32]} 18. Qc3 {[%emt 0:03:50]} Nc5 {[%emt 0:03:41]} 19. Qc2 {[%emt 0:10:42]} Nd3 {[%emt 0:12:21]} 20. f5 {[%emt 0:01:21]} Qc5+ {[%emt 0:02:12]} 21. Kh1 {[%emt 0:00:04]} Bh6 {[%emt 0:00:28]} 22. Bc3 {[%emt 0:03:16]} a4 {[%emt 0:01:58]} 23. h3 {[%emt 0:03:58]} axb3 {[%emt 0:03:49]} 24. Qxb3 {[%emt 0:00:02]} Nf2+ {[%emt 0:00:21]} 25. Kh2 {[%emt 0:00:41]} Nxe4 {[%emt 0:00:48]} 26. Bb4 {[%emt 0:00:30]} Nd2 {[%emt 0:02:47]} 27. Bxd2 {[%emt 0:00:53]} Rxd2 {[%emt 0:01:00]} 28. Qf3 {[%emt 0:01:13]} Rf8 {[%emt 0:00:51]} 29. Qe4 {[%emt 0:00:41]} Rd4 {[%emt 0:01:07]} 30. Qf3 {[%emt 0:00:18]} Qxc4 {[%emt 0:01:09]} 0-1

[Event "Uhlenkoeper-Open 2024"]
[Site "Uelzen"]
[Date "2024.12.27"]
[Round "2.6"]
[White "Bargsten, Justus"]
[Black "Nyenhuis, Yannek"]
[Result "1/2-1/2"]
[ECO "B31"]
[WhiteElo "2228"]
[BlackElo "1943"]
[Annotator "ChessBase"]
[PlyCount "112"]
[EventDate "2024.12.27"]
[EventType "swiss"]
[EventCountry "GER"]
[SourceTitle "playchess.com"]
[Source "ChessBase"]
[SourceQuality "1"]
[TimeControl "40/5400+30:1800+30"]

1. e4 {[%emt 0:00:01]} c5 {[%emt 0:00:07]} 2. Nf3 {[%emt 0:00:03]} Nc6 {[%emt 0:00:07]} 3. Bb5 {[%emt 0:00:04]} g6 {[%emt 0:00:12]} 4. c3 {[%emt 0:00:03]} Bg7 {[%emt 0:00:56]} 5. d4 {[%emt 0:00:05]} cxd4 {[%emt 0:02:02]} 6. cxd4 {[%emt 0:00:07]} Nf6 {[%emt 0:01:58]} 7. Nc3 {[%emt 0:01:08]} d5 {[%emt 0:03:37]} 8. Ne5 {[%emt 0:00:08]} Bd7 {[%emt 0:05:07]} 9. Nxd7 {[%emt 0:00:06]} Nxd7 {[%emt 0:03:44]} 10. e5 {[%emt 0:00:07]} e6 {[%emt 0:00:52]} 11. Be3 {[%emt 0:01:13]} Rc8 {[%emt 0:01:01]} 12. Qd2 {[%emt 0:05:01]} Qb6 {[%emt 0:03:47]} 13. O-O {[%emt 0:00:40]} O-O {[%emt 0:00:42]} 14. f4 {[%emt 0:02:31]} f6 {[%emt 0:03:54]} 15. Be2 {[%emt 0:07:12]} Qb4 {[%emt 0:24:21]} 16. Bg4 {[%emt 0:04:45]} Qe7 {[%emt 0:01:15]} 17. Nb5 {[%emt 0:03:00]} a6 {[%emt 0:00:22]} 18. Nd6 {[%emt 0:00:35]} Rc7 {[%emt 0:00:21]} 19. Rac1 {[%emt 0:06:05]} fxe5 {[%emt 0:07:01]} 20. dxe5 {[%emt 0:06:14]} Bxe5 {[%emt 0:02:06]} 21. Nxb7 {[%emt 0:08:17]} Bg7 {[%emt 0:03:15]} 22. Na5 {[%emt 0:01:40]} Rfc8 {[%emt 0:00:25]} 23. Nxc6 {[%emt 0:01:54]} Rxc6 {[%emt 0:00:11]} 24. Rxc6 {[%emt 0:01:12]} Rxc6 {[%emt 0:00:05]} 25. Rc1 {[%emt 0:04:31]} Qd6 {[%emt 0:08:48]} 26. Rxc6 {[%emt 0:03:36]} Qxc6 {[%emt 0:00:03]} 27. Qb4 {[%emt 0:02:44]} Kf7 {[%emt 0:02:03]} 28. h3 {[%emt 0:00:39]} Bf8 {[%emt 0:06:44]} 29. Qd2 {[%emt 0:01:44]} Bc5 {[%emt 0:01:16]} 30. b4 {[%emt 0:00:54]} Bb6 {[%emt 0:00:57]} 31. Kh2 {[%emt 0:00:29]} Nf6 {[%emt 0:01:19]} 32. Bf3 {[%emt 0:00:09]} Bc7 {[%emt 0:00:20]} 33. g3 {[%emt 0:05:30]} Qc4 {[%emt 0:02:18]} 34. Bd4 {[%emt 0:03:33]} Bd6 {[%emt 0:04:15]} 35. a3 {[%emt 0:02:41]} Nd7 {[%emt 0:01:50]} 36. Be2 {[%emt 0:00:50]} Qb3 {[%emt 0:01:39]} 37. Qd3 {[%emt 0:01:07]} Qa2 {[%emt 0:02:09]} 38. Qxa6 {[%emt 0:01:21]} Nf6 {[%emt 0:00:55]} 39. Bxf6 {[%emt 0:07:14]} Kxf6 {[%emt 0:00:02]} 40. Qd3 {[%emt 0:00:53]} e5 {[%emt 0:03:50]} 41. fxe5+ {[%emt 0:30:31]} Bxe5 {[%emt 0:30:54]} 42. Kg2 {[%emt 0:05:33]} Bb2 {[%emt 0:02:42]} 43. b5 {[%emt 0:00:28]} Qxa3 {[%emt 0:00:00]} 44. Qxd5 {[%emt 0:00:00]} Qe3 {[%emt 0:00:00]} 45. Bc4 {[%emt 0:00:00]} Bd4 {[%emt 0:00:00]} 46. Qf7+ {[%emt 0:00:00]} Kg5 {[%emt 0:00:00]} 47. h4+ {[%emt 0:00:00]} Kh6 {[%emt 0:00:00]} 48. Kh3 {[%emt 0:00:00]} Be5 {[%emt 0:00:00]} 49. Qf8+ {[%emt 0:00:00]} Kh5 {[%emt 0:00:00]} 50. Kg2 {[%emt 0:00:00]} Qxg3+ {[%emt 0:00:00]} 51. Kf1 {[%emt 0:00:00]} Qh3+ {[%emt 0:00:00]} 52. Ke2 {[%emt 0:00:00]} Qg4+ {[%emt 0:00:00]} 53. Qf3 {[%emt 0:00:00]} Kxh4 {[%emt 0:00:00]} 54. Qxg4+ {[%emt 0:00:00]} Kxg4 {[%emt 0:00:00]} 55. Kf2 {[%emt 0:00:00]} Kh3 {[%emt 0:00:00]} 56. Bd3 {[%emt 0:00:00]} Bd4+ {[%emt 0:00:00]} 1/2-1/2

[Event "Uhlenkoeper-Open 2024"]
[Site "Uelzen"]
[Date "2024.12.27"]
[Round "2.7"]
[White "Harms, Friedjof"]
[Black "von Estorff, Jacob"]
[Result "0-1"]
[ECO "B23"]
[WhiteElo "1884"]
[BlackElo "2209"]
[Annotator "ChessBase"]
[PlyCount "62"]
[EventDate "2024.12.27"]
[EventType "swiss"]
[EventCountry "GER"]
[SourceTitle "playchess.com"]
[Source "ChessBase"]
[SourceQuality "1"]
[TimeControl "40/5400+30:1800+30"]

1. e4 {[%emt 0:00:02]} c5 {[%emt 0:00:14]} 2. Nc3 {[%emt 0:00:05]} Nc6 {[%emt 0:01:56]} 3. f4 {[%emt 0:00:07]} g6 {[%emt 0:05:27]} 4. Nf3 {[%emt 0:00:10]} Bg7 {[%emt 0:00:04]} 5. Bb5 {[%emt 0:00:18]} Nd4 {[%emt 0:02:04]} 6. O-O {[%emt 0:00:17]} a6 {[%emt 0:01:37]} 7. Bd3 {[%emt 0:00:16]} e6 {[%emt 0:06:55]} 8. Nxd4 {[%emt 0:02:15]} cxd4 {[%emt 0:07:40]} 9. Ne2 {[%emt 0:00:10]} f5 {[%emt 0:04:00]} 10. c3 {[%emt 0:07:56]} Qb6 {[%emt 0:05:09]} 11. Kh1 {[%emt 0:07:30]} dxc3 {[%emt 0:01:54]} 12. dxc3 {[%emt 0:02:26]} Nf6 {[%emt 0:01:42]} 13. exf5 {[%emt 0:07:37]} gxf5 {[%emt 0:00:24]} 14. Ng3 {[%emt 0:02:07]} O-O {[%emt 0:01:45]} 15. Qe2 {[%emt 0:12:50]} Qc6 {[%emt 0:06:08]} 16. Nh5 {[%emt 0:07:19]} Nxh5 {[%emt 0:00:43]} 17. Qxh5 {[%emt 0:00:02]} b5 {[%emt 0:01:03]} 18. Be2 {[%emt 0:04:31]} Bb7 {[%emt 0:01:10]} 19. Bf3 {[%emt 0:01:11]} Qc4 {[%emt 0:02:39]} 20. Be3 {[%emt 0:02:24]} Be4 {[%emt 0:01:17]} 21. Rfd1 {[%emt 0:04:04]} d5 {[%emt 0:01:43]} 22. Bd4 {[%emt 0:04:31]} Rf7 {[%emt 0:00:47]} 23. Qg5 {[%emt 0:05:15]} Kh8 {[%emt 0:05:49]} 24. Bxg7+ {[%emt 0:02:03]} Rxg7 {[%emt 0:00:21]} 25. Qh5 {[%emt 0:07:38]} Rag8 {[%emt 0:03:13]} 26. g3 {[%emt 0:06:34]} Qe2 {[%emt 0:02:03]} 27. Rf1 {[%emt 0:01:48]} Rg4 {[%emt 0:02:41]} 28. Bxe4 {[%emt 0:04:20]} Qxe4+ {[%emt 0:00:07]} 29. Kg1 {[%emt 0:00:08]} Rxg3+ {[%emt 0:00:11]} 30. hxg3 {[%emt 0:00:44]} Rxg3+ {[%emt 0:00:06]} 31. Kh2 {[%emt 0:00:21]} Qg2# {[%emt 0:35:08]} 0-1

[Event "Uhlenkoeper-Open 2024"]
[Site "Uelzen"]
[Date "2024.12.27"]
[Round "2.8"]
[White "Weigand, Anton"]
[Black "Burnus, Finn Crispin"]
[Result "1-0"]
[ECO "C77"]
[WhiteElo "2092"]
[BlackElo "1883"]
[Annotator "NA"]
[PlyCount "93"]
[EventDate "2024.12.27"]
[EventType "swiss"]
[EventCountry "GER"]
[SourceTitle "playchess.com"]
[Source "ChessBase"]
[SourceQuality "1"]
[TimeControl "40/5400+30:1800+30"]

1. e4 {[%emt 0:00:05]} e5 {[%emt 0:00:03]} 2. Nf3 {[%emt 0:00:05]} Nc6 {[%emt 0:00:02]} 3. Bb5 {[%emt 0:00:06]} a6 {[%emt 0:00:03]} 4. Ba4 {[%emt 0:00:06]} Nf6 {[%emt 0:00:05]} 5. Nc3 {[%emt 0:00:09]} b5 {[%emt 0:00:03]} 6. Bb3 {[%emt 0:00:08]} Be7 {[%emt 0:00:03]} 7. a4 {[%emt 0:00:34] C77: Ruy Lopez: 3...a6 4 Ba4 Nf6, unusual lines.} b4 {[%emt 0:00:04]} 8. Nd5 {[%emt 0:00:08]} O-O {[%emt 0:00:48]} 9. Nxf6+ {[%emt 0:00:39]} Bxf6 {[%emt 0:00:07]} 10. Bd5 {[%emt 0:00:08]} Bb7 {[%emt 0:02:33]} 11. b3 {[%emt 0:00:45]} Na5 {[%emt 0:04:25]} 12. Bxb7 {[%emt 0:00:17]} Nxb7 {[%emt 0:00:06]} 13. Bb2 {[%emt 0:00:37]} d6 {[%emt 0:00:12]} 14. Qe2 {[%emt 0:00:51]} Re8 {[%emt 0:01:37]} 15. O-O-O {[%emt 0:00:15]} Nc5 {[%emt 0:01:15]} 16. Kb1 {[%emt 0:06:10]} Ne6 {[%emt 0:04:09]} 17. d4 {[%emt 0:07:34]} exd4 {[%emt 0:02:30]} 18. Nxd4 {[%emt 0:00:24]} Nxd4 {[%emt 0:02:43]} 19. Bxd4 {[%emt 0:00:02]} Bxd4 {[%emt 0:16:54]} 20. Rxd4 {[%emt 0:00:08]} Qg5 {[%emt 0:00:38]} 21. g3 {[%emt 0:02:21]} Qf6 {[%emt 0:16:29]} (21... a5 $14) 22. Rhd1 {[%emt 0:08:04]} a5 {[%emt 0:00:48]} 23. f4 {[%emt 0:00:14]} g6 {[%emt 0:01:19]} 24. Qc4 {[%emt 0:03:44]} Qe7 {[%emt 0:19:42]} 25. Qc6 {[%emt 0:07:11]} Rab8 $16 {[%emt 0:03:52]} (25... Ra7 $142 26. Rc4 Rf8) 26. Rc4 {[%emt 0:05:03]} Rec8 {[%emt 0:01:33]} 27. h4 {[%emt 0:01:04]} Rb6 {[%emt 0:00:06]} 28. Qxb6 {[%emt 0:08:55]} cxb6 {[%emt 0:00:29]} 29. Rxc8+ {[%emt 0:00:08]} Kg7 {[%emt 0:00:04]} 30. Rc4 {[%emt 0:00:11]} Qe6 {[%emt 0:02:04]} 31. Rd3 {[%emt 0:00:25]} Qh3 {[%emt 0:03:53]} 32. Kb2 {[%emt 0:00:52]} Qg2 {[%emt 0:00:40]} 33. Rcd4 {[%emt 0:00:36]} h6 {[%emt 0:05:39]} 34. Rxd6 {[%emt 0:02:00]} Qxe4 {[%emt 0:00:06]} 35. Rxb6 {[%emt 0:00:12]} g5 {[%emt 0:00:14]} 36. fxg5 {[%emt 0:06:05]} hxg5 {[%emt 0:00:07]} 37. hxg5 {[%emt 0:00:04]} Qe5+ {[%emt 0:00:20]} 38. Kb1 {[%emt 0:02:31]} Qxg5 {[%emt 0:05:49]} 39. Rb5 {[%emt 0:00:54]} Qf6 {[%emt 0:00:07]} 40. Rc5 {[%emt 0:04:33]} Qf1+ {[%emt 0:01:16]} 41. Ka2 {[%emt 0:30:24]} Qf2 {[%emt 0:33:04]} 42. Rc4 {[%emt 0:00:03]} Qe2 {[%emt 0:01:27]} 43. g4 {[%emt 0:00:49]} Qg2 {[%emt 0:00:41]} 44. Rd7 {[%emt 0:01:05]} Kg6 {[%emt 0:00:00]} 45. Rdc7 {[%emt 0:00:00]} f6 {[%emt 0:00:00]} 46. R7c5 {[%emt 0:00:00]} Qa8 {[%emt 0:00:00]} 47. Rb5 {[%emt 0:00:00]} 1-0

[Event "Uhlenkoeper-Open 2024"]
[Site "Uelzen"]
[Date "2024.12.27"]
[Round "2.9"]
[White "Buecklers, Martin"]
[Black "Carmesin, Leon Lucas Finn"]
[Result "1-0"]
[ECO "A05"]
[WhiteElo "1859"]
[BlackElo "2081"]
[Annotator "NA"]
[PlyCount "91"]
[EventDate "2024.12.27"]
[EventType "swiss"]
[EventCountry "GER"]
[SourceTitle "playchess.com"]
[Source "ChessBase"]
[SourceQuality "1"]
[TimeControl "40/5400+30:1800+30"]

1. Nf3 {[%emt 0:00:05]} Nf6 {[%emt 0:00:11]} 2. g3 {[%emt 0:00:06]} g6 {[%emt 0:00:12]} 3. Bg2 {[%emt 0:00:06]} c6 {[%emt 0:00:10]} 4. c4 {[%emt 0:02:03]} Bg7 {[%emt 0:00:09]} 5. Nc3 {[%emt 0:00:07]} d5 {[%emt 0:00:14]} 6. cxd5 {[%emt 0:00:18] A05: Réti Opening: 1 Nf3 Nf6.} cxd5 {[%emt 0:00:54]} 7. Qa4+ {[%emt 0:04:32]} Nbd7 {[%emt 0:09:29]} 8. Ne5 {[%emt 0:11:50]} O-O {[%emt 0:02:23]} 9. Nxd7 {[%emt 0:00:31]} Bxd7 {[%emt 0:00:02]} 10. Qb3 {[%emt 0:00:27]} Bc6 {[%emt 0:00:31]} 11. d4 {[%emt 0:00:35]} Qd7 {[%emt 0:01:12]} 12. O-O {[%emt 0:00:15]} Rac8 {[%emt 0:01:18]} 13. Rd1 {[%emt 0:09:54]} b6 {[%emt 0:05:26]} 14. a4 {[%emt 0:03:41]} Rfd8 {[%emt 0:01:07]} 15. Bg5 {[%emt 1:03:30]} h6 {[%emt 0:01:46]} 16. Bf4 {[%emt 0:00:00]} e6 {[%emt 0:01:13]} 17. Be5 {[%emt 0:00:00]} Ne8 {[%emt 0:01:30]} 18. Bxg7 {[%emt 0:00:00]} Kxg7 {[%emt 0:00:11]} 19. Qa2 {[%emt 0:00:00]} Nd6 {[%emt 0:02:22]} 20. Rac1 {[%emt 0:00:00]} f5 {[%emt 0:00:56]} 21. e3 {[%emt 0:00:00]} Rc7 {[%emt 0:03:49]} 22. b3 {[%emt 0:00:00]} Rdc8 {[%emt 0:00:20]} 23. Rc2 {[%emt 0:00:00]} Bxa4 {[%emt 0:02:17]} 24. Rdc1 {[%emt 0:00:00]} Bb5 {[%emt 0:00:27]} 25. Bf1 {[%emt 0:00:00]} Bxf1 {[%emt 0:00:27]} 26. Kxf1 {[%emt 0:00:00]} a5 {[%emt 0:04:48]} 27. h4 {[%emt 0:00:00]} Qc6 {[%emt 0:03:45]} ({Better is} 27... g5 28. Ne2 Rxc2 29. Rxc2 Rxc2 30. Qxc2 Qc8) 28. Qb2 {[%emt 0:00:00]} Qb7 {[%emt 0:02:26]} 29. Qa2 $17 {[%emt 0:00:00]} b5 {[%emt 0:05:33]} 30. Ne2 {[%emt 0:00:00]} Qb6 {[%emt 0:03:16]} 31. Nf4 {[%emt 0:00:00]} Kf6 {[%emt 0:00:57]} 32. Nd3 {[%emt 0:08:30]} b4 {[%emt 0:10:07]} 33. Rxc7 {[%emt 0:00:00]} Rxc7 {[%emt 0:00:09]} 34. Rc5 {[%emt 0:00:00]} Nb7 {[%emt 0:02:14]} 35. Rc2 {[%emt 0:00:00]} Nd6 {[%emt 0:02:59]} 36. Rc5 {[%emt 0:00:00]} Nb7 {[%emt 0:01:58]} 37. Rc2 {[%emt 0:00:00]} g5 {[%emt 0:06:49]} 38. hxg5+ {[%emt 0:00:00]} hxg5 {[%emt 0:00:26]} 39. Rxc7 {[%emt 0:00:00]} Qxc7 {[%emt 0:00:04]} 40. Qe2 {[%emt 0:00:00]} g4 {[%emt 0:01:28]} 41. Nf4 {[%emt 0:27:10]} Qc6 {[%emt 0:35:41]} 42. Kg2 {[%emt 0:06:39]} Nd6 {[%emt 0:05:39]} 43. Qd1 {[%emt 0:00:00]} e5 {[%emt 0:00:00]} 44. dxe5+ {[%emt 0:00:00]} Kg5 {[%emt 0:00:00]} 45. exd6 {[%emt 0:00:00]} d4+ {[%emt 0:00:00]} 46. Kg1 {[%emt 0:00:00]} 1-0

[Event "Uhlenkoeper-Open 2024"]
[Site "Uelzen"]
[Date "2024.12.27"]
[Round "2.10"]
[White "Bogomolow, Sergej"]
[Black "Sayas Payyappat"]
[Result "1-0"]
[ECO "B87"]
[WhiteElo "2090"]
[BlackElo "1823"]
[Annotator "NA"]
[PlyCount "71"]
[EventDate "2024.12.27"]
[EventType "swiss"]
[EventCountry "GER"]
[SourceTitle "playchess.com"]
[Source "ChessBase"]
[SourceQuality "1"]
[TimeControl "40/5400+30:1800+30"]

1. e4 {[%emt 0:00:02]} c5 {[%emt 0:00:45]} 2. Nf3 {[%emt 0:00:08]} d6 {[%emt 0:00:18]} 3. d4 {[%emt 0:00:08]} cxd4 {[%emt 0:00:12]} 4. Nxd4 {[%emt 0:00:04]} Nf6 {[%emt 0:00:17]} 5. Nc3 {[%emt 0:00:04]} a6 {[%emt 0:00:05]} 6. Bc4 {[%emt 0:00:15]} e6 {[%emt 0:00:46]} 7. Bb3 {[%emt 0:00:06]} b5 {[%emt 0:03:03]} 8. O-O {[%emt 0:00:14]} Nbd7 {[%emt 0:06:36]} 9. Re1 {[%emt 0:02:52] B87: Sicilian Scheveningen/Najdorf: 6 Bc4, with early ...b5.} Nc5 {[%emt 0:01:57]} 10. Bd5 {[%emt 0:11:52]} exd5 {[%emt 0:06:06]} 11. exd5+ {[%emt 0:00:31]} Kd7 {[%emt 0:00:53]} 12. b4 {[%emt 0:01:46]} Nb7 {[%emt 0:03:59]} 13. Nc6 {[%emt 0:10:54]} Qb6 {[%emt 0:05:22]} 14. Be3 {[%emt 0:01:15]} Qc7 {[%emt 0:01:23]} 15. Qf3 {[%emt 0:04:37]} Nd8 {[%emt 0:07:44]} 16. Qf5+ {[%emt 0:10:24]} Ne6 {[%emt 0:01:17]} 17. Bd4 {[%emt 0:02:44]} Be7 {[%emt 0:16:02]} 18. Nxe7 {[%emt 0:15:09]} Kxe7 {[%emt 0:01:13]} 19. dxe6 $18 {[%emt 0:00:10]} Bxe6 {[%emt 0:03:20]} 20. Bxf6+ {[%emt 0:00:53]} Kd7 {[%emt 0:00:48]} 21. Nxb5 {[%emt 0:09:43]} Qc6 {[%emt 0:05:33]} 22. Nd4 {[%emt 0:04:57]} Bxf5 {[%emt 0:05:59]} 23. Re7+ {[%emt 0:00:09]} Kc8 {[%emt 0:00:17]} 24. Nxc6 {[%emt 0:00:04]} gxf6 {[%emt 0:02:36]} 25. Rxf7 {[%emt 0:00:15]} Bd7 {[%emt 0:00:21]} 26. Nd4 {[%emt 0:02:18]} Rb8 {[%emt 0:01:27]} 27. c3 {[%emt 0:00:50]} f5 {[%emt 0:00:51]} 28. Nxf5 {[%emt 0:00:48]} Bxf5 {[%emt 0:00:09]} 29. Rxf5 {[%emt 0:00:05]} Kd7 {[%emt 0:00:20]} 30. Re1 {[%emt 0:01:19]} Rhc8 {[%emt 0:01:23]} 31. Rf7+ {[%emt 0:00:49]} Kc6 {[%emt 0:00:02]} 32. Rxh7 {[%emt 0:00:43]} Kb5 {[%emt 0:00:18]} 33. Re3 {[%emt 0:00:21]} Ka4 {[%emt 0:00:12]} 34. h4 {[%emt 0:00:33]} Ka3 {[%emt 0:00:44]} 35. Rh5 {[%emt 0:01:03]} Rb5 {[%emt 0:01:37]} 36. c4+ {[%emt 0:00:06]} 1-0